[Event "Torneo Nuevo Centro. Jornada 8"]
[Site "Chess.com"]
[Date "2020.08.07"]
[Round "1"]
[White "Bercaru, Vlad Ionut"]
[Black "Méndez Giménez , Néstor Emmanuel"]
[Result "1-0"]
[WhiteElo "1878"]
[BlackElo "1185"]
[TimeControl "180+2"]
[EndTime "10:39:46 PDT"]
[Termination "Victoria de Rata29 por jaque mate"]

1. d4 {[%clk 0:03:00.3]} 1... e6 {[%clk 0:02:59.9]} 2. Nf3 {[%clk 0:02:59.3]}
2... d5 {[%clk 0:03:00.4]} 3. Bf4 {[%clk 0:03:00.2]} 3... Bd6 {[%clk 0:03:00.4]}
4. e3 {[%clk 0:02:57.4]} 4... Nf6 {[%clk 0:03:00.6]} 5. Bd3 {[%clk 0:02:57]}
5... Bxf4 {[%clk 0:03:00.7]} 6. exf4 {[%clk 0:02:57.1]} 6... Nc6 {[%clk
0:02:59.9]} 7. c3 {[%clk 0:02:57]} 7... b6 {[%clk 0:02:59.1]} 8. Nbd2 {[%clk
0:02:57.4]} 8... Bb7 {[%clk 0:02:54.9]} 9. O-O {[%clk 0:02:56.5]} 9... O-O
{[%clk 0:02:50.5]} 10. Ne5 {[%clk 0:02:53.6]} 10... Qd6 {[%clk 0:02:46]} 11.
Ndf3 {[%clk 0:02:41.9]} 11... Ne4 {[%clk 0:02:25.4]} 12. Bxe4 {[%clk 0:02:36.7]}
12... dxe4 {[%clk 0:02:26]} 13. Nd2 {[%clk 0:02:33.5]} 13... Nxe5 {[%clk
0:02:26]} 14. fxe5 {[%clk 0:02:34.2]} 14... Qd5 {[%clk 0:02:26.3]} 15. Qg4
{[%clk 0:02:05.6]} 15... f5 {[%clk 0:02:07.1]} 16. Qg5 {[%clk 0:01:37.4]} 16...
f4 {[%clk 0:01:44]} 17. Rae1 {[%clk 0:01:23.1]} 17... Rf5 {[%clk 0:01:37.4]} 18.
Qg4 {[%clk 0:01:13.4]} 18... e3 {[%clk 0:01:07.1]} 19. fxe3 {[%clk 0:01:03.5]}
19... fxe3 {[%clk 0:01:00.5]} 20. Rxe3 {[%clk 0:00:50.7]} 20... h5 {[%clk
0:00:22.3]} 21. Qe4 {[%clk 0:00:35.7]} 21... Rxf1+ {[%clk 0:00:19.9]} 22. Kxf1
{[%clk 0:00:33.8]} 22... Qb5+ {[%clk 0:00:20.3]} 23. c4 {[%clk 0:00:28.1]} 23...
Qxb2 {[%clk 0:00:17.1]} 24. Qxb7 {[%clk 0:00:22.7]} 24... Qxd2 {[%clk
0:00:17.4]} 25. Qxa8+ {[%clk 0:00:22.6]} 25... Kh7 {[%clk 0:00:17.5]} 26. Qe4+
{[%clk 0:00:21.7]} 26... Kg8 {[%clk 0:00:17.8]} 27. Re2 {[%clk 0:00:22.8]} 27...
Qd1+ {[%clk 0:00:18.1]} 28. Kf2 {[%clk 0:00:23.3]} 28... Qa4 {[%clk 0:00:17.4]}
29. d5 {[%clk 0:00:23.3]} 29... exd5 {[%clk 0:00:17.8]} 30. Qxd5+ {[%clk
0:00:23.7]} 30... Kh7 {[%clk 0:00:18.1]} 31. Qe4+ {[%clk 0:00:23.4]} 31... Kg8
{[%clk 0:00:18.8]} 32. c5 {[%clk 0:00:24.2]} 32... Qa5 {[%clk 0:00:17.4]} 33.
cxb6 {[%clk 0:00:23.4]} 33... Qxb6+ {[%clk 0:00:17.6]} 34. Qe3 {[%clk
0:00:23.7]} 34... Qe6 {[%clk 0:00:16.9]} 35. Qb3 {[%clk 0:00:22.7]} 35... Qf7+
{[%clk 0:00:16.8]} 36. Qxf7+ {[%clk 0:00:22.3]} 36... Kxf7 {[%clk 0:00:17.5]}
37. e6+ {[%clk 0:00:24.2]} 37... Ke7 {[%clk 0:00:18.2]} 38. Re3 {[%clk
0:00:25.2]} 38... g6 {[%clk 0:00:16.9]} 39. Ke2 {[%clk 0:00:26]} 39... c6 {[%clk
0:00:17.3]} 40. Kd3 {[%clk 0:00:27.1]} 40... a5 {[%clk 0:00:17.9]} 41. Kc4
{[%clk 0:00:28.3]} 41... a4 {[%clk 0:00:16.2]} 42. Kc5 {[%clk 0:00:29]} 42... a3
{[%clk 0:00:16.4]} 43. Kxc6 {[%clk 0:00:29.4]} 43... g5 {[%clk 0:00:17.2]} 44.
Kd5 {[%clk 0:00:28.5]} 44... g4 {[%clk 0:00:17.7]} 45. Re5 {[%clk 0:00:29.6]}
45... h4 {[%clk 0:00:17.5]} 46. Re4 {[%clk 0:00:29.6]} 46... h3 {[%clk
0:00:17.4]} 47. gxh3 {[%clk 0:00:29.2]} 47... gxh3 {[%clk 0:00:17.6]} 48. Rh4
{[%clk 0:00:31.1]} 48... Ke8 {[%clk 0:00:17.1]} 49. Rh7 {[%clk 0:00:29.4]} 49...
Kd8 {[%clk 0:00:16.3]} 50. Kd6 {[%clk 0:00:30.8]} 50... Ke8 {[%clk 0:00:16.6]}
51. Rh8# {[%clk 0:00:29.7]} 1

[Event "Torneo Nuevo Centro. Jornada 8"]
[Site "Chess.com"]
[Date "2020.08.07"]
[Round "2"]
[White "Rabbani Perez, Oumaima "]
[Black "Tormos Beltran, Maite"]
[Result "0-1"]
[WhiteElo "622"]
[BlackElo "1430"]
[TimeControl "180+2"]
[EndTime "10:42:31 PDT"]
[Termination "Victoria de TORBEL79 por jaque mate"]

1. e3 {[%clk 0:03:01.9]} 1... e5 {[%clk 0:02:59.5]} 2. Bc4 {[%clk 0:03:00.6]}
2... Nf6 {[%clk 0:02:59.8]} 3. Nf3 {[%clk 0:02:59.9]} 3... d5 {[%clk 0:03:01.1]}
4. Bb3 {[%clk 0:02:56.8]} 4... Bg4 {[%clk 0:03:00.3]} 5. Ba4+ {[%clk 0:02:55]}
5... c6 {[%clk 0:03:00.6]} 6. Bb3 {[%clk 0:02:47.2]} 6... Bd6 {[%clk 0:02:59.1]}
7. O-O {[%clk 0:02:40.2]} 7... e4 {[%clk 0:02:58.1]} 8. h3 {[%clk 0:02:35.5]}
8... exf3 {[%clk 0:02:57.8]} 9. hxg4 {[%clk 0:02:34.4]} 9... Nxg4 {[%clk
0:02:57.8]} 10. gxf3 {[%clk 0:02:34.8]} 10... Bh2+ {[%clk 0:02:55.7]} 11. Kh1
{[%clk 0:02:31.3]} 11... Qh4 {[%clk 0:02:52.3]} 12. fxg4 {[%clk 0:02:30.2]}
12... Bd6+ {[%clk 0:02:48.6]} 13. Kg1 {[%clk 0:02:28.1]} 13... Qh2# {[%clk
0:02:49.8]} 0

[Event "Torneo Nuevo Centro. Jornada 8"]
[Site "Chess.com"]
[Date "2020.08.07"]
[Round "2"]
[White "Gukasov, Artem"]
[Black "Fitzpatrick Dimas, Kevin"]
[Result "1-0"]
[WhiteElo "1522"]
[BlackElo "885"]
[TimeControl "180+2"]
[EndTime "10:43:03 PDT"]
[Termination "Victoria de ArtemGukasov por abandono"]

1. e4 {[%clk 0:03:01.9]} 1... e5 {[%clk 0:02:59.2]} 2. Nf3 {[%clk 0:03:00.9]}
2... Nc6 {[%clk 0:02:59.1]} 3. Bc4 {[%clk 0:02:57.8]} 3... Bc5 {[%clk
0:02:55.8]} 4. d3 {[%clk 0:02:48.8]} 4... d6 {[%clk 0:02:50.8]} 5. Nc3 {[%clk
0:02:48.8]} 5... Bg4 {[%clk 0:02:50]} 6. h3 {[%clk 0:02:48.9]} 6... Bxf3 {[%clk
0:02:50.6]} 7. Qxf3 {[%clk 0:02:49.2]} 7... Nf6 {[%clk 0:02:49.9]} 8. Bg5 {[%clk
0:02:47.9]} 8... O-O {[%clk 0:02:44.7]} 9. Nd5 {[%clk 0:02:47.3]} 9... Bb4+
{[%clk 0:02:26.5]} 10. c3 {[%clk 0:02:46.7]} 10... Bc5 {[%clk 0:02:24.2]} 11.
Nxf6+ {[%clk 0:02:43.2]} 11... gxf6 {[%clk 0:02:24.5]} 12. Bh6 {[%clk
0:02:42.9]} 12... Re8 {[%clk 0:02:16.8]} 13. Qg3+ {[%clk 0:02:41]} 13... Kh8
{[%clk 0:02:06.8]} 1

[Event "Torneo Nuevo Centro. Jornada 8"]
[Site "Chess.com"]
[Date "2020.08.07"]
[Round "2"]
[White "Conon, Catalin"]
[Black "Miranda Calvo, Max Rodrigo"]
[Result "1-0"]
[WhiteElo "1939"]
[BlackElo "1347"]
[TimeControl "180+2"]
[EndTime "10:44:21 PDT"]
[Termination "Victoria de CatalinConon por abandono"]

1. e4 {[%clk 0:03:01.9]} 1... e5 {[%clk 0:03:00.5]} 2. Nf3 {[%clk 0:03:02.7]}
2... Nc6 {[%clk 0:02:58.4]} 3. Bc4 {[%clk 0:03:03]} 3... Bc5 {[%clk 0:02:58.4]}
4. c3 {[%clk 0:03:03.4]} 4... d6 {[%clk 0:02:53.7]} 5. d4 {[%clk 0:03:04]} 5...
exd4 {[%clk 0:02:54.4]} 6. cxd4 {[%clk 0:03:05.9]} 6... Bb4+ {[%clk 0:02:54.9]}
7. Nc3 {[%clk 0:03:06.6]} 7... Bg4 {[%clk 0:02:53.2]} 8. O-O {[%clk 0:03:01.8]}
8... Nge7 {[%clk 0:02:53.6]} 9. h3 {[%clk 0:03:02.5]} 9... Bxf3 {[%clk
0:02:51.9]} 10. Qxf3 {[%clk 0:03:04.4]} 10... O-O {[%clk 0:02:47.9]} 11. Be3
{[%clk 0:03:05.7]} 11... Bxc3 {[%clk 0:02:34.3]} 12. bxc3 {[%clk 0:03:06.7]}
12... Qd7 {[%clk 0:02:33.2]} 13. Qg3 {[%clk 0:03:07.4]} 13... Ng6 {[%clk
0:02:25.9]} 14. h4 {[%clk 0:02:45.5]} 14... Kh8 {[%clk 0:01:58.9]} 15. h5 {[%clk
0:02:45.9]} 15... Nge7 {[%clk 0:01:57.8]} 16. h6 {[%clk 0:02:24.6]} 16... g6
{[%clk 0:01:54.1]} 17. Qg5 {[%clk 0:02:25.3]} 17... a6 {[%clk 0:01:24.4]} 18.
Qf6+ {[%clk 0:02:25.9]} 1

[Event "Torneo Nuevo Centro. Jornada 8"]
[Site "Chess.com"]
[Date "2020.08.07"]
[Round "2"]
[White "Beneyto de Ramon, Guillermo"]
[Black "Hernández Tomás, Efrén"]
[Result "1-0"]
[WhiteElo "1653"]
[BlackElo "1075"]
[TimeControl "180+2"]
[EndTime "10:46:06 PDT"]
[Termination "Victoria de GUILLETE por jaque mate"]

1. c4 {[%clk 0:03:01.5]} 1... e5 {[%clk 0:03:00.7]} 2. Nc3 {[%clk 0:03:02.3]}
2... Nf6 {[%clk 0:03:00.7]} 3. g3 {[%clk 0:03:03.4]} 3... Nc6 {[%clk 0:03:01.1]}
4. Bg2 {[%clk 0:03:05]} 4... Bc5 {[%clk 0:03:00.1]} 5. d3 {[%clk 0:03:06.2]}
5... Ng4 {[%clk 0:02:59.9]} 6. Ne4 {[%clk 0:03:06.5]} 6... d6 {[%clk 0:02:57.1]}
7. Nxc5 {[%clk 0:03:04.8]} 7... dxc5 {[%clk 0:02:57.3]} 8. Nf3 {[%clk
0:03:05.3]} 8... O-O {[%clk 0:02:55]} 9. h3 {[%clk 0:03:06.1]} 9... Nf6 {[%clk
0:02:54.9]} 10. Bg5 {[%clk 0:03:05.5]} 10... h6 {[%clk 0:02:53.7]} 11. Bh4
{[%clk 0:03:05.8]} 11... Qe7 {[%clk 0:02:53]} 12. Qd2 {[%clk 0:03:06.3]} 12...
e4 {[%clk 0:02:52.2]} 13. dxe4 {[%clk 0:02:51.4]} 13... Rd8 {[%clk 0:02:50.6]}
14. Qc3 {[%clk 0:02:43.2]} 14... Qe6 {[%clk 0:02:45.5]} 15. Bxf6 {[%clk
0:02:38.2]} 15... gxf6 {[%clk 0:02:45.9]} 16. O-O {[%clk 0:02:36.1]} 16... Qxe4
{[%clk 0:02:44.5]} 17. Qxf6 {[%clk 0:02:32.5]} 17... Re8 {[%clk 0:02:39.3]} 18.
e3 {[%clk 0:02:23.1]} 18... Qxc4 {[%clk 0:02:39.5]} 19. Qxh6 {[%clk 0:02:23.4]}
19... Qe6 {[%clk 0:02:34.6]} 20. Qh4 {[%clk 0:02:16.4]} 20... Ne5 {[%clk
0:02:27.8]} 21. Ng5 {[%clk 0:02:13.6]} 21... Qg6 {[%clk 0:02:22]} 22. f4 {[%clk
0:02:12.1]} 22... f6 {[%clk 0:02:20.8]} 23. Bd5+ {[%clk 0:02:07.5]} 23... Kg7
{[%clk 0:02:16.3]} 24. Be4 {[%clk 0:01:46.1]} 24... Qh6 {[%clk 0:02:12.3]} 25.
fxe5 {[%clk 0:01:34.5]} 25... fxg5 {[%clk 0:02:11.5]} 26. Rf7+ {[%clk
0:01:30.3]} 26... Kxf7 {[%clk 0:02:05.1]} 27. Qxh6 {[%clk 0:01:31]} 27... Rxe5
{[%clk 0:02:05.3]} 28. Qh7+ {[%clk 0:01:29.4]} 28... Kf6 {[%clk 0:02:04.1]} 29.
Qh8+ {[%clk 0:01:26.7]} 29... Ke6 {[%clk 0:02:04]} 30. Qe8+ {[%clk 0:01:19.5]}
30... Kd6 {[%clk 0:02:03.5]} 31. Rd1+ {[%clk 0:01:19.8]} 31... Rd5 {[%clk
0:02:00.7]} 32. Rxd5# {[%clk 0:01:20.2]} 1

[Event "Torneo Nuevo Centro. Jornada 8"]
[Site "Chess.com"]
[Date "2020.08.07"]
[Round "2"]
[White "Pardo Ruiz, Carlos"]
[Black "Castellano López, Javier"]
[Result "0-1"]
[WhiteElo "1675"]
[BlackElo "1893"]
[TimeControl "180+2"]
[EndTime "10:48:22 PDT"]
[Termination "Victoria de its_xavi_official por jaque mate"]

1. e4 {[%clk 0:03:01.9]} 1... c6 {[%clk 0:03:00.6]} 2. d4 {[%clk 0:03:01.6]}
2... d5 {[%clk 0:03:01.7]} 3. exd5 {[%clk 0:03:03.5]} 3... cxd5 {[%clk
0:03:03.4]} 4. Bd3 {[%clk 0:03:03.9]} 4... Nc6 {[%clk 0:03:04.5]} 5. c3 {[%clk
0:03:04.2]} 5... Qc7 {[%clk 0:03:05.7]} 6. Nf3 {[%clk 0:03:02.9]} 6... Nf6
{[%clk 0:03:06.3]} 7. h3 {[%clk 0:03:02.1]} 7... g6 {[%clk 0:03:05.1]} 8. O-O
{[%clk 0:03:01.6]} 8... Bf5 {[%clk 0:03:05.8]} 9. Re1 {[%clk 0:02:55.4]} 9...
Bxd3 {[%clk 0:03:05.4]} 10. Qxd3 {[%clk 0:02:57.3]} 10... Bg7 {[%clk 0:03:06.3]}
11. Nbd2 {[%clk 0:02:56.5]} 11... O-O {[%clk 0:03:06.1]} 12. Nb3 {[%clk
0:02:53.2]} 12... a5 {[%clk 0:02:59.8]} 13. Qb5 {[%clk 0:02:45.3]} 13... e6
{[%clk 0:02:54.5]} 14. Nc5 {[%clk 0:02:43.5]} 14... b6 {[%clk 0:02:48]} 15. Nd3
{[%clk 0:02:43.5]} 15... Na7 {[%clk 0:02:40.4]} 16. Qb3 {[%clk 0:02:37.6]} 16...
Nd7 {[%clk 0:02:36.7]} 17. Bf4 {[%clk 0:02:31.3]} 17... Qc4 {[%clk 0:02:27.7]}
18. Qxc4 {[%clk 0:02:31.3]} 18... dxc4 {[%clk 0:02:29.6]} 19. Nde5 {[%clk
0:02:31.6]} 19... Nxe5 {[%clk 0:02:21.9]} 20. Bxe5 {[%clk 0:02:33.5]} 20... Nc6
{[%clk 0:02:16.1]} 21. Bxg7 {[%clk 0:02:33.2]} 21... Kxg7 {[%clk 0:02:18]} 22.
Rad1 {[%clk 0:02:31.1]} 22... Rfd8 {[%clk 0:02:17.4]} 23. Ne5 {[%clk 0:02:27.3]}
23... Ne7 {[%clk 0:02:15.7]} 24. Nxc4 {[%clk 0:02:25.4]} 24... b5 {[%clk
0:02:10.3]} 25. Ne5 {[%clk 0:02:25.1]} 25... b4 {[%clk 0:02:09]} 26. c4 {[%clk
0:02:23.9]} 26... Rac8 {[%clk 0:02:02.8]} 27. b3 {[%clk 0:02:22.9]} 27... Nf5
{[%clk 0:02:00.1]} 28. d5 {[%clk 0:02:08.9]} 28... exd5 {[%clk 0:02:01.1]} 29.
cxd5 {[%clk 0:02:10.8]} 29... Rc2 {[%clk 0:01:56.7]} 30. d6 {[%clk 0:02:06.8]}
30... Rxd6 {[%clk 0:01:50.8]} 31. Nc4 {[%clk 0:02:01.5]} 31... Rxd1 {[%clk
0:01:45.9]} 32. Rxd1 {[%clk 0:02:03.4]} 32... Rxa2 {[%clk 0:01:46.9]} 33. Rd5
{[%clk 0:02:03]} 33... a4 {[%clk 0:01:45.7]} 34. bxa4 {[%clk 0:02:00.9]} 34...
Rxa4 {[%clk 0:01:43.6]} 35. Rb5 {[%clk 0:02:02.2]} 35... Nd4 {[%clk 0:01:39.3]}
36. Rb7 {[%clk 0:02:00.5]} 36... b3 {[%clk 0:01:38.2]} 37. Nd2 {[%clk
0:01:56.5]} 37... Ra3 {[%clk 0:01:21.8]} 38. Nc4 {[%clk 0:01:52.9]} 38... Ra1+
{[%clk 0:01:19.6]} 39. Kh2 {[%clk 0:01:51.9]} 39... Rb1 {[%clk 0:01:15.8]} 40.
Kg3 {[%clk 0:01:29]} 40... g5 {[%clk 0:01:07.5]} 41. Nd2 {[%clk 0:01:21.7]}
41... Rb2 {[%clk 0:01:00.1]} 42. Nc4 {[%clk 0:01:20.4]} 42... Rc2 {[%clk
0:00:55.1]} 43. Na3 {[%clk 0:01:14.5]} 43... Rc3+ {[%clk 0:00:53.4]} 44. Kg4
{[%clk 0:01:09.2]} 44... Kg6 {[%clk 0:00:48.8]} 45. Rb6+ {[%clk 0:01:06.8]}
45... f6 {[%clk 0:00:48.7]} 46. f4 {[%clk 0:01:02.6]} 46... h5# {[%clk
0:00:47.5]} 0

[Event "Torneo Nuevo Centro. Jornada 8"]
[Site "Chess.com"]
[Date "2020.08.07"]
[Round "2"]
[White "Serrano Requena, Guillem"]
[Black "Gimenez Saiz, Jose Raul"]
[Result "0-1"]
[WhiteElo "1320"]
[BlackElo "1722"]
[TimeControl "180+2"]
[EndTime "10:48:49 PDT"]
[Termination "Victoria de rango013 por jaque mate"]

1. d4 {[%clk 0:03:01.9]} 1... d6 {[%clk 0:02:59.2]} 2. c4 {[%clk 0:03:01.6]}
2... e5 {[%clk 0:02:59.6]} 3. Nf3 {[%clk 0:02:59.8]} 3... exd4 {[%clk
0:02:56.6]} 4. Nxd4 {[%clk 0:02:59.7]} 4... g6 {[%clk 0:02:54.9]} 5. Nc3 {[%clk
0:02:49]} 5... Bg7 {[%clk 0:02:55.3]} 6. e4 {[%clk 0:02:47.7]} 6... Nd7 {[%clk
0:02:53.2]} 7. Be3 {[%clk 0:02:34]} 7... Ngf6 {[%clk 0:02:51.8]} 8. Bd3 {[%clk
0:02:26.1]} 8... O-O {[%clk 0:02:50]} 9. O-O {[%clk 0:02:25.9]} 9... Ne5 {[%clk
0:02:49.9]} 10. Bc2 {[%clk 0:02:19.1]} 10... Nxc4 {[%clk 0:02:41.2]} 11. Bb3
{[%clk 0:02:12.8]} 11... Nxe3 {[%clk 0:02:22.3]} 12. fxe3 {[%clk 0:02:09.8]}
12... Bg4 {[%clk 0:02:19.4]} 13. Qe1 {[%clk 0:02:08.3]} 13... a6 {[%clk
0:02:04.8]} 14. Rc1 {[%clk 0:01:58.6]} 14... c5 {[%clk 0:02:03.1]} 15. Nf3
{[%clk 0:01:55.6]} 15... b5 {[%clk 0:01:59.5]} 16. e5 {[%clk 0:01:54.5]} 16...
dxe5 {[%clk 0:01:43.2]} 17. Nxe5 {[%clk 0:01:55.1]} 17... c4 {[%clk 0:01:42.6]}
18. Nxg4 {[%clk 0:01:29.8]} 18... Nxg4 {[%clk 0:01:29.3]} 19. Bc2 {[%clk
0:01:27.8]} 19... Qd6 {[%clk 0:01:01.4]} 20. Qh4 {[%clk 0:01:08.2]} 20... Nxe3
{[%clk 0:00:53.5]} 21. Rf3 {[%clk 0:01:00.8]} 21... Bd4 {[%clk 0:00:39.7]} 22.
Kh1 {[%clk 0:00:29.9]} 22... Bxc3 {[%clk 0:00:34.4]} 23. Rxe3 {[%clk 0:00:24.7]}
23... Qd2 {[%clk 0:00:24.9]} 24. Ree1 {[%clk 0:00:17.6]} 24... Bxb2 {[%clk
0:00:24.8]} 25. Red1 {[%clk 0:00:17.5]} 25... Qe3 {[%clk 0:00:23.6]} 26. Rb1
{[%clk 0:00:17.6]} 26... Bg7 {[%clk 0:00:20.8]} 27. Re1 {[%clk 0:00:16.7]} 27...
Qc5 {[%clk 0:00:18.5]} 28. Qg4 {[%clk 0:00:09.1]} 28... Rad8 {[%clk 0:00:19.6]}
29. Rbd1 {[%clk 0:00:07.1]} 29... Rxd1 {[%clk 0:00:20]} 30. Rxd1 {[%clk
0:00:09]} 30... Qb4 {[%clk 0:00:19.6]} 31. Rd7 {[%clk 0:00:06.4]} 31... Qe1#
{[%clk 0:00:18.5]} 0

[Event "Torneo Nuevo Centro. Jornada 8"]
[Site "Chess.com"]
[Date "2020.08.07"]
[Round "2"]
[White "Montesinos Diaz, Luis"]
[Black "Perez Garcia, Jose Miguel"]
[Result "1-0"]
[WhiteElo "1837"]
[BlackElo "2030"]
[TimeControl "180+2"]
[EndTime "10:49:28 PDT"]
[Termination "Victoria de Gwiso_06 por abandono"]

1. d4 {[%clk 0:03:01.9]} 1... d5 {[%clk 0:03:00.9]} 2. Nf3 {[%clk 0:03:01.8]}
2... c6 {[%clk 0:03:02.8]} 3. e3 {[%clk 0:03:01]} 3... Nf6 {[%clk 0:03:04.1]} 4.
Bd3 {[%clk 0:03:01.9]} 4... Nbd7 {[%clk 0:03:03.7]} 5. b3 {[%clk 0:03:03.2]}
5... g6 {[%clk 0:03:04.7]} 6. Bb2 {[%clk 0:03:04.4]} 6... Bg7 {[%clk 0:03:06.2]}
7. O-O {[%clk 0:03:05.8]} 7... O-O {[%clk 0:03:07.7]} 8. Nbd2 {[%clk 0:03:07]}
8... e6 {[%clk 0:03:08.5]} 9. c4 {[%clk 0:03:07.9]} 9... Qe7 {[%clk 0:03:07.8]}
10. Ne5 {[%clk 0:03:07.6]} 10... Re8 {[%clk 0:03:06.1]} 11. f4 {[%clk
0:03:07.4]} 11... Nf8 {[%clk 0:03:05]} 12. g4 {[%clk 0:02:55.8]} 12... N6d7
{[%clk 0:03:01.3]} 13. Ndf3 {[%clk 0:02:46.9]} 13... f6 {[%clk 0:03:01.6]} 14.
Nxd7 {[%clk 0:02:47.3]} 14... Nxd7 {[%clk 0:03:01.9]} 15. g5 {[%clk 0:02:48.4]}
15... f5 {[%clk 0:03:00]} 16. Ne5 {[%clk 0:02:47]} 16... Nxe5 {[%clk 0:02:50.5]}
17. dxe5 {[%clk 0:02:43.5]} 17... b6 {[%clk 0:02:50.9]} 18. Rf3 {[%clk
0:02:39.5]} 18... Ba6 {[%clk 0:02:46.7]} 19. Rc1 {[%clk 0:02:38.4]} 19... Rac8
{[%clk 0:02:46.8]} 20. cxd5 {[%clk 0:02:30.7]} 20... Bxd3 {[%clk 0:02:46.2]} 21.
d6 {[%clk 0:02:31.9]} 21... Qd7 {[%clk 0:02:46.3]} 22. Qxd3 {[%clk 0:02:32.5]}
22... c5 {[%clk 0:02:47.5]} 23. a4 {[%clk 0:02:27.2]} 23... Qc6 {[%clk
0:02:44.6]} 24. Kf2 {[%clk 0:02:17.3]} 24... Red8 {[%clk 0:02:43.1]} 25. h4
{[%clk 0:02:14.8]} 25... Kf7 {[%clk 0:02:43.6]} 26. Rh3 {[%clk 0:02:07.3]} 26...
Rd7 {[%clk 0:02:40.5]} 27. h5 {[%clk 0:02:05.5]} 27... Rdd8 {[%clk 0:02:41.6]}
28. Rc4 {[%clk 0:01:43.7]} 28... Rd7 {[%clk 0:02:31.1]} 29. e4 {[%clk
0:01:41.8]} 29... fxe4 {[%clk 0:02:27.3]} 30. Qxe4 {[%clk 0:01:41.8]} 30... Qxe4
{[%clk 0:02:27.6]} 31. Rxe4 {[%clk 0:01:43.7]} 31... gxh5 {[%clk 0:02:23.3]} 32.
Rxh5 {[%clk 0:01:44.2]} 32... Kg6 {[%clk 0:02:25.2]} 33. Rh1 {[%clk 0:01:31.3]}
33... a6 {[%clk 0:02:24.2]} 34. Rc1 {[%clk 0:01:26.8]} 34... Kf5 {[%clk
0:02:23.1]} 35. Kf3 {[%clk 0:01:23.2]} 35... b5 {[%clk 0:02:17.3]} 36. axb5
{[%clk 0:01:22.7]} 36... axb5 {[%clk 0:02:19.2]} 37. Ba3 {[%clk 0:01:22.5]}
37... h6 {[%clk 0:02:01.7]} 38. gxh6 {[%clk 0:01:18.7]} 38... Bxh6 {[%clk
0:02:03.6]} 39. Rxc5 {[%clk 0:01:16.1]} 39... Ra8 {[%clk 0:02:02.4]} 40. Rc7
{[%clk 0:01:09.5]} 40... Rxc7 {[%clk 0:01:47.9]} 41. dxc7 {[%clk 0:01:09.4]}
41... Rc8 {[%clk 0:01:49]} 42. Bd6 {[%clk 0:01:09.8]} 42... Bf8 {[%clk
0:01:46.9]} 43. Rb4 {[%clk 0:01:08.2]} 43... Rxc7 {[%clk 0:01:45.3]} 44. Bxf8
{[%clk 0:01:08.4]} 44... Rc3+ {[%clk 0:01:45.9]} 45. Ke2 {[%clk 0:01:08.9]}
45... Rc2+ {[%clk 0:01:45.5]} 46. Kd3 {[%clk 0:01:09.7]} 46... Rc1 {[%clk
0:01:46]} 47. Bh6 {[%clk 0:01:08.3]} 47... Rd1+ {[%clk 0:01:47.9]} 48. Ke3
{[%clk 0:01:09]} 48... Rd5 {[%clk 0:01:48.3]} 49. Rd4 {[%clk 0:01:03.3]} 49...
Rc5 {[%clk 0:01:48]} 50. b4 {[%clk 0:00:58.4]} 50... Rc3+ {[%clk 0:01:48.7]} 51.
Kd2 {[%clk 0:00:59]} 51... Rh3 {[%clk 0:01:45.4]} 52. Bg5 {[%clk 0:00:57.4]}
52... Rb3 {[%clk 0:01:46.5]} 53. Kc2 {[%clk 0:00:57.5]} 53... Ra3 {[%clk
0:01:45]} 54. Rd3 {[%clk 0:00:57.3]} 54... Ra4 {[%clk 0:01:42.7]} 55. Kb3 {[%clk
0:00:49.7]} 55... Ke4 {[%clk 0:01:43]} 56. Rd6 {[%clk 0:00:49.2]} 56... Kf5
{[%clk 0:01:43.9]} 57. Rb6 {[%clk 0:00:47.4]} 57... Ra1 {[%clk 0:01:44.9]} 58.
Rxb5 {[%clk 0:00:46.6]} 58... Rb1+ {[%clk 0:01:46.8]} 59. Kc2 {[%clk 0:00:44.7]}
59... Ra1 {[%clk 0:01:48.7]} 60. Rc5 {[%clk 0:00:44]} 60... Ra2+ {[%clk
0:01:48.5]} 61. Kb3 {[%clk 0:00:44.7]} 61... Ra1 {[%clk 0:01:49.3]} 62. Rc2
{[%clk 0:00:45.4]} 62... Ke4 {[%clk 0:01:47.9]} 63. b5 {[%clk 0:00:45.8]} 63...
Kd5 {[%clk 0:01:48.5]} 64. b6 {[%clk 0:00:43.2]} 64... Ra6 {[%clk 0:01:46]} 65.
Bd8 {[%clk 0:00:43.6]} 65... Ra5 {[%clk 0:01:45.1]} 66. Kb4 {[%clk 0:00:43]}
66... Ra1 {[%clk 0:01:46]} 67. Rb2 {[%clk 0:00:39.5]} 1